fUSD/lending_fUSD_20250514
["ID","MTS","AMOUNT","RATE_DAILY","PERIOD"]
[361063403,1747227049653,-400.0,0.00011254,2]
[361063404,1747227049662,-400.0,0.00011254,2]
[361063405,1747227049674,-400.0,0.00011254,2]
[361063406,1747227049683,-1000.0,0.00011254,2]
[361063407,1747227049693,-551.24,0.00011254,2]
[361063408,1747227049702,-1849.9,0.00011254,2]
[361063409,1747227049712,-445.32,0.00011254,2]
[361063410,1747227049721,-849.78,0.00011254,2]
[361063411,1747227049731,-400.0,0.00011254,2]
[361063412,1747227049741,-400.0,0.00011254,2]
[361063413,1747227049750,-482.14,0.00011254,2]
[361063414,1747227049760,-1088.99,0.00011254,2]
[361063415,1747227049769,-441.29,0.00011254,2]
[361063416,1747227049779,-400.0,0.00011255,2]
[361063417,1747227049788,-400.55499244,0.00011255,2]
[361063418,1747227049798,-400.0,0.00011255,2]
[361063419,1747227049807,-461.35968127,0.00011255,2]
[361063420,1747227049817,-400.0,0.00011255,2]
[361063421,1747227049826,-620.04,0.00011255,2]
[361063422,1747227049835,-400.0,0.00011255,2]
[361063423,1747227049845,-400.0,0.00011255,2]
[361063424,1747227049854,-476.40651239,0.00011255,2]
[361063425,1747227049864,-400.0,0.00011255,2]
[361063426,1747227049873,-400.0,0.00011255,2]
[361063427,1747227049883,-400.0,0.00011255,2]
[361063428,1747227049892,-406.03175644,0.00011255,2]
[361063429,1747227049901,-424.98922152,0.00011255,2]
[361063430,1747227049911,-400.0,0.00011255,2]
[361063431,1747227049923,-668.59,0.00011255,2]
[361063432,1747227049933,-400.84836759,0.00011255,2]
[361063433,1747227049943,-435.1893572,0.00011255,2]
[361063434,1747227049952,-400.0,0.00011255,2]
[361063435,1747227049962,-400.0,0.00011255,2]
[361063436,1747227049971,-400.0,0.00011255,2]
[361063437,1747227049981,-400.0,0.00011255,2]
[361063438,1747227049991,-400.0,0.00011255,2]
[361063439,1747227050172,-400.0,0.00011255,2]
[361063440,1747227050205,-400.0,0.00011255,2]
[361063441,1747227050215,-400.0,0.00011255,2]
[361063442,1747227050224,-400.0,0.00011255,2]
[361063443,1747227050234,-400.0,0.00011255,2]
[361063444,1747227050244,-400.0,0.00011255,2]
[361063445,1747227050254,-400.0,0.00011255,2]
[361063446,1747227050263,-400.0,0.00011255,2]
[361063447,1747227050273,-400.0,0.00011255,2]
[361063448,1747227050283,-400.0,0.00011255,2]
[361063449,1747227050292,-813.35,0.00011255,2]
[361063450,1747227050302,-484.47771309,0.00011255,2]
[361063451,1747227050312,-400.0,0.00011255,2]
[361063452,1747227050322,-400.0,0.00011255,2]
[361063453,1747227050333,-426.98,0.00011255,2]
[361063454,1747227050342,-400.0,0.00011255,2]
[361063455,1747227050352,-400.0,0.00011255,2]
[361063456,1747227050361,-400.0,0.00011255,2]
[361063457,1747227050371,-400.0,0.00011255,2]
[361063458,1747227050381,-400.0,0.00011255,2]
[361063459,1747227050390,-457.65,0.00011255,2]
[361063460,1747227050399,-400.0,0.00011255,2]
[361063461,1747227050410,-400.0,0.00011255,2]
[361063462,1747227050420,-400.0,0.00011255,2]
[361063463,1747227050430,-400.0,0.00011255,2]
[361063464,1747227050440,-401.63,0.00011255,2]
[361063465,1747227050449,-400.0,0.00011255,2]
[361063466,1747227050460,-400.0,0.00011255,2]
[361063467,1747227050469,-400.0,0.00011255,2]
[361063468,1747227050478,-400.0,0.00011255,2]
[361063469,1747227050488,-486.53,0.00011255,2]
[361063470,1747227050498,-400.0,0.00011255,2]
[361063471,1747227050507,-400.0,0.00011255,2]
[361063472,1747227050516,-400.0,0.00011255,2]
[361063473,1747227050525,-400.0,0.00011255,2]
[361063474,1747227050534,-400.0,0.00011255,2]
[361063475,1747227050543,-445.31,0.00011255,2]
[361063476,1747227050553,-400.0,0.00011255,2]
[361063477,1747227050562,-968.02,0.00011255,2]
[361063478,1747227050571,-400.0,0.00011255,2]
[361063479,1747227050580,-400.0,0.00011255,2]
[361063480,1747227050590,-400.0,0.00011255,2]
[361063481,1747227050599,-400.0,0.00011255,2]
[361063482,1747227050608,-541.77,0.00011255,2]
[361063483,1747227050618,-400.0,0.00011255,2]
[361063484,1747227050627,-400.0,0.00011255,2]
[361063485,1747227050637,-445.45,0.00011255,2]
[361063486,1747227050646,-400.0,0.00011255,2]
[361063487,1747227050656,-632.39,0.00011255,2]
[361063488,1747227050667,-400.0,0.00011255,2]
[361063489,1747227050677,-400.0,0.00011255,2]
[361063490,1747227050686,-400.0,0.00011255,2]
[361063491,1747227050696,-705.71,0.00011255,2]
[361063492,1747227050705,-400.0,0.00011255,2]
[361063493,1747227050715,-641.8,0.00011255,2]
[361063494,1747227050724,-1154.67,0.00011255,2]
[361063495,1747227050734,-400.0,0.00011255,2]
[361063496,1747227050743,-400.0,0.00011255,2]
[361063497,1747227050752,-578.86,0.00011255,2]
[361063498,1747227050762,-400.0,0.00011255,2]
[361063499,1747227050772,-230.70605791,0.00011255,2]
[361063500,1747227050781,-1068.5,0.00011255,2]
[361063501,1747227050791,-464.34,0.00011255,2]
[361063502,1747227050801,-569.22,0.00011255,2]
[361063503,1747227050810,-1753.8,0.00011255,2]
[361063504,1747227050820,-565.13,0.00011255,2]
[361063505,1747227050830,-400.0,0.00011255,2]
[361063506,1747227050839,-400.0,0.00011255,2]
[361063507,1747227050850,-517.29,0.00011255,2]
[361063508,1747227050859,-400.0,0.00011255,2]
[361063509,1747227050869,-400.0,0.00011255,2]
[361063510,1747227050878,-443.86066433,0.00011255,2]
[361063511,1747227050888,-400.0,0.00011255,2]
[361063512,1747227050897,-400.0,0.00011255,2]
[361063513,1747227050907,-400.0,0.00011255,2]
[361063514,1747227050918,-400.0,0.00011255,2]
[361063515,1747227050927,-638.38,0.00011255,2]
[361063516,1747227050937,-400.0,0.00011255,2]
[361063517,1747227050946,-400.0,0.00011255,2]
[361063518,1747227050955,-400.0,0.00011255,2]
[361063519,1747227050965,-400.0,0.00011255,2]
[361063520,1747227050975,-400.0,0.00011255,2]
[361063521,1747227050984,-400.0,0.00011255,2]
[361063522,1747227050994,-447.71,0.00011255,2]
[361063523,1747227051003,-400.0,0.00011255,2]
[361063524,1747227051013,-400.0,0.00011255,2]
[361063525,1747227051024,-1805.92,0.00011255,2]
[361063526,1747227051036,-400.0,0.00011255,2]
[361063527,1747227051045,-400.0,0.00011255,2]
[361063528,1747227051055,-400.0,0.00011255,2]
[361063529,1747227051065,-953.97,0.00011255,2]
[361063530,1747227051077,-400.0,0.00011255,2]
[361063531,1747227051087,-400.0,0.00011255,2]
[361063532,1747227051097,-1653.98,0.00011255,2]
[361063533,1747227051108,-246.48383994,0.00011255,2]
[361063534,1747227051118,-151.0,0.00011255,2]
[361063535,1747227051128,-412.38,0.00011255,2]
[361063536,1747227051137,-410.29,0.00011255,2]
[361063537,1747227051147,-837.04,0.00011255,2]
[361063538,1747227051157,-2007.0,0.00011255,2]
[361063539,1747227051170,-151.0,0.00011255,2]
[361063540,1747227051180,-400.0,0.00011255,2]
[361063541,1747227051191,-400.0,0.00011255,2]
[361063542,1747227051200,-400.0,0.00011255,2]
[361063543,1747227051210,-400.0,0.00011255,2]
[361063544,1747227051219,-400.0,0.00011255,2]
[361063545,1747227051229,-400.0,0.00011255,2]
[361063546,1747227051239,-400.0,0.00011255,2]
[361063547,1747227051249,-400.0,0.00011255,2]
[361063548,1747227051258,-400.0,0.00011255,2]
[361063549,1747227051267,-612.33,0.00011255,2]
[361063550,1747227051277,-958.42,0.00011255,2]
[361063551,1747227051287,-473.16,0.00011255,2]
[361063552,1747227051297,-449.73,0.00011255,2]
[361063553,1747227051307,-400.0,0.00011255,2]
[361063554,1747227051317,-400.0,0.00011255,2]
[361063555,1747227051327,-701.57,0.00011255,2]
[361063556,1747227051337,-551.93,0.00011255,2]
[361063557,1747227051347,-400.0,0.00011255,2]
[361063558,1747227051357,-436.94,0.00011255,2]
[361063559,1747227051367,-400.0,0.00011255,2]
[361063560,1747227051376,-2597.54,0.00011255,2]
[361063561,1747227051385,-400.0,0.00011255,2]
[361063562,1747227051395,-154.58908925,0.00011255,2]
[361063563,1747227051404,-151.0,0.00011255,2]
[361063564,1747227051414,-400.0,0.00011255,2]
[361063565,1747227051427,-400.0,0.00011255,2]
[361063566,1747227051437,-151.0,0.00011255,2]
[361063567,1747227051447,-851.87,0.00011255,2]
[361063568,1747227051456,-400.0,0.00011255,2]
[361063569,1747227051466,-518.08,0.00011255,2]
[361063570,1747227051476,-1361.74,0.00011255,2]
[361063571,1747227051486,-1542.29,0.00011255,2]
[361063572,1747227051496,-403.8,0.00011255,2]
[361063573,1747227051505,-483.11,0.00011255,2]
[361063574,1747227051515,-151.0,0.00011255,2]
[361063575,1747227051524,-197.791014,0.00011255,2]
[361063576,1747227051534,-483.75,0.00011255,2]
[361063577,1747227051543,-400.0,0.00011255,2]
[361063578,1747227051553,-151.0,0.00011255,2]
[361063579,1747227051562,-197.791014,0.00011255,2]
[361063580,1747227051571,-1001.15,0.00011255,2]
[361063581,1747227051581,-400.0,0.00011255,2]
[361063582,1747227051590,-400.0,0.00011255,2]
[361063583,1747227051600,-866.74,0.00011255,2]
[361063584,1747227051610,-424.6,0.00011255,2]
[361063585,1747227051619,-400.0,0.00011255,2]
[361063586,1747227051629,-151.0,0.00011255,2]
[361063587,1747227051639,-400.0,0.00011255,2]
[361063588,1747227051648,-400.0,0.00011255,2]
[361063589,1747227051657,-623.6,0.00011255,2]
[361063590,1747227051669,-878.58,0.00011255,2]
[361063591,1747227051679,-400.0,0.00011255,2]
[361063592,1747227051688,-400.0,0.00011255,2]
[361063593,1747227051698,-400.0,0.00011255,2]
[361063594,1747227051707,-400.0,0.00011255,2]
[361063595,1747227051717,-558.81,0.00011255,2]
[361063596,1747227051727,-430.47,0.00011255,2]
[361063597,1747227051736,-151.0,0.00011255,2]
[361063598,1747227051745,-400.0,0.00011255,2]
[361063599,1747227051755,-151.0,0.00011255,2]
[361063600,1747227051764,-836.88,0.00011255,2]
[361063601,1747227051774,-400.0,0.00011255,2]
[361063602,1747227051784,-400.0,0.00011255,2]
[361063603,1747227051794,-400.0,0.00011255,2]
[361063604,1747227051804,-400.0,0.00011255,2]
[361063605,1747227051814,-400.0,0.00011255,2]
[361063606,1747227051823,-151.0,0.00011255,2]
[361063607,1747227051833,-687.44,0.00011255,2]
[361063608,1747227051842,-1282.25,0.00011255,2]
[361063609,1747227051852,-508.99,0.00011255,2]
[361063610,1747227051861,-868.35,0.00011255,2]
[361063611,1747227051871,-400.0,0.00011255,2]
[361063612,1747227051881,-400.0,0.00011255,2]
[361063613,1747227051890,-400.0,0.00011255,2]
[361063614,1747227051899,-400.0,0.00011255,2]
[361063615,1747227051909,-151.0,0.00011255,2]
[361063616,1747227051919,-400.0,0.00011255,2]
[361063617,1747227051929,-400.0,0.00011255,2]
[361063618,1747227051939,-400.0,0.00011255,2]
[361063619,1747227051948,-568.7,0.00011255,2]
[361063620,1747227051958,-400.0,0.00011255,2]
[361063621,1747227051967,-994.91,0.00011255,2]
[361063622,1747227051977,-400.0,0.00011255,2]
[361063623,1747227051987,-400.0,0.00011255,2]
[361063624,1747227051998,-400.0,0.00011255,2]
[361063625,1747227052008,-400.0,0.00011255,2]
[361063626,1747227052017,-400.0,0.00011255,2]
[361063627,1747227052029,-928.28,0.00011255,2]
[361063628,1747227052039,-400.0,0.00011255,2]
[361063629,1747227052050,-400.0,0.00011255,2]
[361063630,1747227052059,-400.0,0.00011255,2]
[361063631,1747227052070,-400.0,0.00011255,2]
[361063632,1747227052079,-400.0,0.00011255,2]
[361063633,1747227052089,-333.33065279,0.00011255,2]
[361063634,1747227052100,-654.93,0.00011255,2]
[361063635,1747227052109,-151.0,0.00011255,2]
[361063636,1747227052119,-2915.19,0.00011255,2]
[361063637,1747227052128,-151.0,0.00011255,2]
[361063638,1747227052138,-400.0,0.00011255,2]
[361063639,1747227052147,-525.72,0.00011255,2]
[361063640,1747227052157,-400.0,0.00011255,2]
[361063641,1747227052167,-658.778422,0.00011255,2]
[361063642,1747227052176,-1051.61,0.00011255,2]
[361063643,1747227052186,-209.174331,0.00011255,2]
[361063644,1747227052195,-658.778422,0.00011255,2]
[361063645,1747227052205,-921.23,0.00011255,2]
[361063646,1747227052214,-209.174331,0.00011255,2]
[361063647,1747227052224,-151.0,0.00011255,2]
[361063648,1747227052234,-151.0,0.00011255,2]
[361063649,1747227052244,-949.04,0.00011255,2]
[361063650,1747227052254,-151.0,0.00011255,2]
[361063651,1747227052263,-234.84293843,0.00011255,2]
[361063652,1747227052273,-400.0,0.00011255,2]
[361063653,1747227052283,-151.0,0.00011255,2]
[361063654,1747227052293,-1087.73,0.00011255,2]
[361063655,1747227052302,-400.0,0.00011255,2]
[361063656,1747227052312,-807.36,0.00011255,2]
[361063657,1747227052321,-400.0,0.00011255,2]
[361063658,1747227052331,-151.0,0.00011255,2]
[361063659,1747227052341,-400.0,0.00011255,2]
[361063660,1747227052350,-400.0,0.00011255,2]
[361063661,1747227052360,-983.28,0.00011255,2]
[361063662,1747227052370,-10496.16,0.00011255,2]
[361063663,1747227052379,-1831.04,0.00011255,2]
[361063664,1747227052388,-151.0,0.00011255,2]
[361063665,1747227052398,-400.0,0.00011255,2]
[361063666,1747227052407,-400.0,0.00011255,2]
[361063667,1747227052416,-655.77,0.00011255,2]
[361063668,1747227052427,-400.0,0.00011255,2]
[361063669,1747227052437,-805.69,0.00011255,2]
[361063670,1747227052446,-1208.23,0.00011255,2]
[361063671,1747227052456,-400.0,0.00011255,2]
[361063672,1747227052465,-151.0,0.00011255,2]
[361063673,1747227052474,-878.67,0.00011255,2]
[361063674,1747227052484,-506.3428026,0.00011255,2]
[361063675,1747227052493,-791.03,0.00011255,2]
[361063676,1747227052502,-400.0,0.00011255,2]
[361063677,1747227052512,-400.0,0.00011255,2]
[361063678,1747227052521,-576.63,0.00011255,2]
[361063679,1747227052531,-151.0,0.00011255,2]
[361063680,1747227052541,-16339.94,0.00011255,2]
[361063681,1747227052550,-400.0,0.00011255,2]
[361063682,1747227052562,-431.83,0.00011255,2]
[361063683,1747227052572,-400.0,0.00011255,2]
[361063684,1747227052582,-400.0,0.00011255,2]
[361063685,1747227052591,-400.0,0.00011255,2]
[361063686,1747227052601,-2603.7,0.00011255,2]
[361063687,1747227052610,-544.09,0.00011255,2]
[361063688,1747227052620,-426.64,0.00011255,2]
[361063689,1747227052629,-400.0,0.00011255,2]
[361063690,1747227052639,-445.27,0.00011255,2]
[361063691,1747227052648,-400.0,0.00011255,2]
[361063692,1747227052657,-400.0,0.00011255,2]
[361063693,1747227052667,-400.0,0.00011255,2]
[361063694,1747227052678,-358.75720003,0.00011255,2]
[361063695,1747227052687,-400.0,0.00011255,2]
[361063696,1747227052697,-735.3,0.00011255,2]
[361063697,1747227052706,-696.88,0.00011255,2]
[361063698,1747227052716,-400.0,0.00011255,2]
[361063699,1747227052728,-969.83,0.00011255,2]
[361063700,1747227052737,-437.88,0.00011255,2]
[361063701,1747227052746,-1090.27,0.00011255,2]
[361063702,1747227052755,-400.0,0.00011255,2]
[361063703,1747227052765,-463.48,0.00011255,2]
[361063704,1747227052774,-151.0,0.00011255,2]
[361063705,1747227052783,-400.0,0.00011255,2]
[361063706,1747227052792,-1216.684352,0.00011255,2]
[361063707,1747227052801,-1216.684352,0.00011255,2]
[361063708,1747227052811,-932.66,0.00011255,2]
[361063709,1747227052820,-400.0,0.00011255,2]
[361063710,1747227052829,-731.919218,0.00011255,2]
[361063711,1747227052838,-492.83,0.00011255,2]
[361063712,1747227052848,-731.919218,0.00011255,2]
[361063713,1747227052857,-235.28861,0.00011255,2]
[361063714,1747227052866,-235.28861,0.00011255,2]
[361063715,1747227052875,-345.263491,0.00011255,2]
[361063716,1747227052885,-400.0,0.00011255,2]
[361063717,1747227052894,-345.263491,0.00011255,2]
[361063718,1747227052903,-557.0,0.00011255,2]
[361063719,1747227052912,-300.0,0.00011255,2]
[361063720,1747227052924,-151.0,0.00011257,2]
[361063721,1747227052934,-231.335987,0.00011257,2]
[361063722,1747227052943,-231.335987,0.00011257,2]
[361063723,1747227052952,-568.708886,0.00011257,2]
[361063724,1747227052963,-568.708886,0.00011257,2]
[361063725,1747227052972,-151.0,0.00011257,2]
[361063726,1747227052983,-255.613997,0.00011257,2]
[361063727,1747227052992,-255.613997,0.00011257,2]
[361063728,1747227053002,-151.0,0.00011257,2]
[361063729,1747227053012,-1358.33,0.00011272,2]
[361063730,1747227053022,-166.94,0.0001135,2]
[361063731,1747227053035,-2371.03675242,0.00011396,2]
[361063732,1747227053045,-321.32,0.000115,2]
[361063733,1747227053054,-2751.0,0.00011507,2]
[361063734,1747227053064,-1000.0,0.00011521,2]
[361063735,1747227053075,-500.0,0.00011521,2]
[361063736,1747227053085,-500.0,0.00011521,2]
[361063737,1747227053095,-500.0,0.00011521,2]
[361063738,1747227053106,-1000.0,0.00011521,2]
[361063739,1747227053115,-693.3919763,0.00011522,2]
[361063740,1747227053125,-151.0,0.00011522,2]
[361063741,1747227053134,-400.0,0.00011527,2]
[361063742,1747227053144,-400.0,0.00011527,2]
[361063743,1747227053154,-419.55,0.00011527,2]
[361063744,1747227053163,-400.0,0.00011527,2]
[361063745,1747227053175,-580.07,0.00011527,2]
[361063746,1747227053185,-400.0,0.00011527,2]
[361063747,1747227053195,-469.38,0.00011527,2]
[361063748,1747227053382,-1678.12,0.00011527,2]
[361063749,1747227053392,-859.94,0.00011527,2]
[361063750,1747227053401,-405.63,0.00011527,2]
[361063751,1747227053411,-403.05,0.00011527,2]
[361063752,1747227053423,-1095.7,0.00011527,2]
[361063753,1747227053433,-1259.52,0.00011527,2]
[361063754,1747227053442,-3338.27,0.00011527,2]
[361063755,1747227053452,-3012.14,0.00011527,2]
[361063756,1747227053462,-1018.3867949,0.00011527,2]
[361063757,1747227053882,-8220.2032051,0.00011527,2]
[361063758,1747227053891,-400.0,0.00011527,2]
[361063759,1747227053901,-495.5,0.00011527,2]
[361063760,1747227053910,-400.0,0.00011527,2]
[361063761,1747227053920,-864.63,0.00011527,2]
[361063762,1747227053930,-3566.332176,0.00011527,2]
[361063763,1747227053939,-216.755354,0.00011527,2]
[361063764,1747227053948,-400.0,0.00011527,2]
[361063765,1747227053958,-1421.13,0.00011527,2]
[361063766,1747227053967,-5291.05,0.00011527,2]
[361063767,1747227053977,-400.0,0.00011527,2]
[361063768,1747227053986,-1511.3,0.00011527,2]
[361063769,1747227053996,-620.99,0.00011527,2]
[361063770,1747227054006,-400.0,0.00011527,2]
[361063771,1747227054015,-560.692113,0.00011527,2]
[361063772,1747227054029,-933.6,0.00011527,2]
[361063773,1747227054041,-660.26,0.00011527,2]
[361063774,1747227054050,-300.0,0.00011528,2]
[361063775,1747227054060,-2202.92,0.00011528,2]
[361063776,1747227054071,-400.0,0.00011528,2]
[361063777,1747227054080,-400.0,0.00011528,2]
[361063778,1747227054090,-672.36,0.00011528,2]
[361063779,1747227054100,-400.0,0.00011528,2]
[361063780,1747227054109,-411.06,0.00011528,2]
[361063781,1747227054120,-1049.32,0.00011528,2]
[361063782,1747227054129,-400.0,0.00011528,2]
[361063783,1747227054139,-400.0,0.00011528,2]
[361063784,1747227054148,-752.64,0.00011528,2]
[361063785,1747227054158,-400.0,0.00011528,2]
[361063786,1747227054169,-400.0,0.00011528,2]
[361063787,1747227054178,-1400.14,0.00011528,2]
[361063788,1747227054191,-400.0,0.00011528,2]
[361063789,1747227054207,-775.22,0.00011528,2]
[361063790,1747227054222,-400.0,0.00011528,2]
[361063791,1747227054237,-654.93,0.00011528,2]
[361063792,1747227054254,-968.58,0.00011528,2]
[361063793,1747227054269,-486.76,0.00011528,2]
[361063794,1747227054283,-400.0,0.00011528,2]
[361063795,1747227054296,-473.06,0.00011528,2]
[361063796,1747227054311,-400.0,0.00011528,2]
[361063797,1747227054327,-754.65,0.00011528,2]
[361063798,1747227054343,-400.0,0.00011528,2]
[361063799,1747227054358,-400.0,0.00011528,2]
[361063800,1747227054374,-400.0,0.00011528,2]
[361063801,1747227054389,-234.62563535,0.00011528,2]
[361063802,1747227054404,-473.00402419,0.00011528,2]
[361063803,1747227054420,-442.67,0.00011528,2]
[361063804,1747227054433,-400.0,0.00011528,2]
[361063805,1747227054446,-1533.53,0.00011528,2]
[361063806,1747227054460,-400.0,0.00011528,2]
[361063807,1747227054476,-931.86,0.00011528,2]
[361063808,1747227054488,-400.0,0.00011528,2]
[361063809,1747227054501,-509.8,0.00011528,2]
[361063810,1747227054517,-400.0,0.00011528,2]
[361063811,1747227054528,-483.88,0.00011528,2]
[361063812,1747227054540,-776.23,0.00011528,2]
[361063813,1747227054556,-400.0,0.00011528,2]
[361063814,1747227054569,-491.8,0.00011528,2]
[361063815,1747227054582,-400.0,0.00011528,2]
[361063816,1747227054594,-555.4,0.00011528,2]
[361063817,1747227054607,-400.0,0.00011528,2]
[361063818,1747227054620,-557.03,0.00011528,2]
[361063819,1747227054633,-400.0,0.00011528,2]
[361063820,1747227054645,-664.85,0.00011528,2]
[361063821,1747227054658,-400.0,0.00011528,2]
[361063822,1747227054671,-400.0,0.00011528,2]
[361063823,1747227054684,-400.0,0.00011528,2]
[361063824,1747227054696,-400.0,0.00011528,2]
[361063825,1747227054709,-400.0,0.00011528,2]
[361063826,1747227054723,-400.0,0.00011528,2]
[361063827,1747227054736,-400.0,0.00011528,2]
[361063828,1747227054750,-428.4,0.00011528,2]
[361063829,1747227054764,-992.08,0.00011528,2]
[361063830,1747227054777,-400.0,0.00011528,2]
[361063831,1747227054790,-547.59,0.00011528,2]
[361063832,1747227054803,-536.77,0.00011528,2]
[361063833,1747227054816,-400.0,0.00011528,2]
[361063834,1747227054829,-400.0,0.00011528,2]
[361063835,1747227054842,-348.84115285,0.00011528,2]
[361063836,1747227054855,-916.77,0.00011528,2]
[361063837,1747227054868,-805.46,0.00011528,2]
[361063838,1747227054881,-400.0,0.00011528,2]
[361063839,1747227054894,-498.27,0.00011528,2]
[361063840,1747227054908,-689.14,0.00011528,2]
[361063841,1747227054921,-428.24,0.00011528,2]
[361063842,1747227054935,-533.63,0.00011528,2]
[361063843,1747227054949,-400.0,0.00011528,2]
[361063844,1747227054963,-400.0,0.00011528,2]
[361063845,1747227054976,-400.0,0.00011528,2]
[361063846,1747227054991,-400.0,0.00011528,2]
[361063847,1747227055004,-400.0,0.00011528,2]
[361063848,1747227055018,-612.04,0.00011528,2]
[361063849,1747227055035,-400.0,0.00011528,2]
[361063850,1747227055048,-400.0,0.00011528,2]
[361063851,1747227055062,-250.0,0.00011528,2]
[361063852,1747227055077,-181.93039039,0.00011528,2]
[361063853,1747227055091,-400.0,0.00011528,2]
[361063854,1747227055106,-447.53,0.00011528,2]
[361063855,1747227055121,-151.0,0.00011528,2]
[361063856,1747227055134,-277.31021365,0.00011528,2]
[361063857,1747227055149,-554.6,0.00011528,2]
[361063858,1747227055162,-400.0,0.00011528,2]
[361063859,1747227055176,-400.0,0.00011528,2]
[361063860,1747227055189,-400.0,0.00011528,2]
[361063861,1747227055202,-536.96,0.00011528,2]
[361063862,1747227055216,-400.0,0.00011528,2]
[361063863,1747227055229,-400.0,0.00011528,2]
[361063864,1747227055243,-926.65,0.00011528,2]
[361063865,1747227055257,-2782.33,0.00011528,2]
[361063866,1747227055270,-926.54,0.00011528,2]
[361063867,1747227055283,-400.0,0.00011528,2]
[361063868,1747227055297,-400.0,0.00011528,2]
[361063869,1747227055310,-151.0,0.00011528,2]
[361063870,1747227055323,-1297.13,0.00011528,2]
[361063871,1747227055337,-2442.34,0.00011528,2]
[361063872,1747227055350,-1982.3,0.00011528,2]
[361063873,1747227055362,-400.0,0.00011528,2]
[361063874,1747227055375,-151.0,0.00011528,2]
[361063875,1747227055388,-762.37,0.00011528,2]
[361063876,1747227055401,-1741.36,0.00011528,2]
[361063877,1747227055414,-1406.11,0.00011528,2]
[361063878,1747227055430,-400.0,0.00011528,2]
[361063879,1747227055443,-942.56,0.00011528,2]
[361063880,1747227055456,-400.0,0.00011528,2]
[361063881,1747227055469,-400.0,0.00011528,2]
[361063882,1747227055482,-400.0,0.00011528,2]
[361063883,1747227055495,-1343.92,0.00011528,2]
[361063884,1747227055508,-2872.66,0.00011528,2]
[361063885,1747227055522,-1284.88,0.00011528,2]
[361063886,1747227055535,-400.0,0.00011528,2]
[361063887,1747227055549,-3765.91,0.00011528,2]
[361063888,1747227055562,-2455.31,0.00011528,2]
[361063889,1747227055575,-1876.04,0.00011528,2]
[361063890,1747227055588,-442.05,0.00011528,2]
[361063891,1747227055601,-3361.3,0.00011528,2]
[361063892,1747227055614,-1654.69,0.00011528,2]
[361063893,1747227055627,-400.0,0.00011528,2]
[361063894,1747227055640,-934.0,0.00011528,2]
[361063895,1747227055651,-4749.53,0.00011528,2]
[361063896,1747227055661,-400.0,0.00011528,2]
[361063897,1747227055670,-400.0,0.00011528,2]
[361063898,1747227055680,-1510.74,0.00011528,2]
[361063899,1747227055689,-400.0,0.00011528,2]
[361063900,1747227055698,-151.0,0.00011528,2]
[361063901,1747227055709,-643.4,0.00011528,2]
[361063902,1747227055718,-400.0,0.00011528,2]